bitfinex/quotes_SOLUSD_20240717
["timestamp","ask_amount","ask_price","bid_price","bid_amount"]
[1721177525067,6.1938,161.45,161.4,6.1957]
[1721177525250,20.0,161.44,161.39,15.4899]
[1721177525451,20.0,161.44,161.4,6.1956]
[1721177526070,20.0,161.44,161.41,6.1952]
[1721177526364,20.0,161.45,161.41,15.488]
[1721177526564,6.1939,161.45,161.41,15.488]
[1721177526870,20.0,161.44,161.41,15.488]
[1721177527272,20.0,161.44,161.41,21.6833]
[1721177527470,20.0,161.44,161.42,6.1948]
[1721177527672,20.0,161.46,161.41,15.488]
[1721177528277,26.1937,161.46,161.41,21.6832]
[1721177528872,6.1938,161.45,161.41,21.6832]
[1721177529074,20.0,161.44,161.41,21.6832]
[1721177529246,26.1943,161.44,161.38,15.491]
[1721177529449,26.1943,161.44,161.39,0.17]
[1721177529649,6.1949,161.43,161.38,21.6872]
[1721177530277,6.1949,161.43,161.39,6.196]
[1721177530452,26.1943,161.44,161.39,6.196]
[1721177530968,6.1947,161.43,161.38,21.6874]
[1721177531168,20.0,161.44,161.35,15.4938]
[1721177531363,6.1962,161.39,161.35,15.4938]
[1721177531671,6.1965,161.38,161.33,6.1983]
[1721177532350,6.1969,161.37,161.32,21.6953]
[1721177534464,40.4873,161.41,161.3,6.1993]
[1721177534783,29.53,161.38,161.3,6.1993]
[1721177535158,20.0,161.37,161.3,6.1993]
[1721177535369,6.1979,161.35,161.3,6.1993]
[1721177535583,20.0,161.34,161.3,6.1993]
[1721177536371,26.1982,161.34,161.29,15.4994]
[1721177536762,20.0,161.34,161.31,6.1992]
[1721177537285,20.0,161.35,161.31,6.1992]
[1721177537780,6.1981,161.34,161.29,15.4994]
[1721177537985,6.1981,161.34,161.29,21.6992]
[1721177538160,20.0,161.35,161.3,6.1994]
[1721177538480,20.0,161.35,161.3,7.43916226]
[1721177538781,26.198,161.35,161.3,7.43916226]
[1721177539470,20.0,161.35,161.29,15.4994]
[1721177539681,6.1985,161.33,161.29,15.4994]
[1721177540176,6.1988,161.32,161.27,7.44048286]
[1721177540688,20.0,161.35,161.26,15.5023]
[1721177540689,6.1999,161.3,161.26,15.5023]
[1721177540990,6.2,161.29,161.24,6.2019]
[1721177541160,29.53,161.32,161.21,6.8245712]
[1721177541161,6.2009,161.27,161.21,6.8245712]
[1721177541369,15.4985,161.31,161.21,0.6218712]
[1721177541571,29.53,161.29,161.21,0.6218712]
[1721177541792,20.0,161.28,161.21,0.6218712]
[1721177542381,6.202,161.24,161.21,0.6218712]
[1721177542662,6.2016,161.25,161.21,0.6218712]
[1721177543176,6.2011,161.26,161.21,6.8247712]
[1721177543385,20.0,161.28,161.21,0.6218712]
[1721177543680,6.2017,161.25,161.21,0.6218712]
[1721177543983,6.202,161.24,161.21,0.6218712]
[1721177544172,6.2016,161.25,161.21,0.6218712]
[1721177544867,6.2012,161.26,161.21,0.6218712]
[1721177545375,6.2007,161.27,161.22,6.2026]
[1721177545679,20.0,161.26,161.22,6.2026]
[1721177546186,26.2012,161.26,161.21,16.1286712]
[1721177546484,6.2021,161.24,161.21,0.6218712]
[1721177546686,20.0,161.26,161.21,0.6218712]
[1721177546985,20.0,161.28,161.21,0.6218712]
[1721177547367,6.4811,161.27,161.21,0.6218712]
[1721177547569,6.2019,161.24,161.21,0.6218712]
[1721177547767,20.0,161.23,161.21,0.6218712]
[1721177549067,20.0,161.25,161.21,0.6218712]
[1721177549569,6.2019,161.24,161.21,0.6218712]
[1721177549763,26.2024,161.23,161.21,0.6218712]
[1721177549972,6.2027,161.22,161.21,0.6218712]
[1721177550173,35.7327,161.22,161.21,0.6218712]
[1721177550381,55.7327,161.22,161.21,0.6218712]
[1721177551363,72.1223,161.22,161.21,0.6218712]
[1721177551582,72.2923,161.22,161.21,0.6218712]
[1721177551799,78.4993,161.22,161.21,0.6218712]
[1721177552283,97.1293,161.22,161.21,0.6218712]
[1721177552487,78.6693,161.22,161.21,0.6218712]
[1721177552871,85.10634553,161.22,161.21,0.6218712]
[1721177553492,103.73634553,161.22,161.21,0.6218712]
[1721177554397,85.10634553,161.22,161.21,0.6218712]
[1721177554895,84.93634553,161.22,161.21,0.6218712]
[1721177555278,85.10634553,161.22,161.21,0.6218712]
[1721177555489,84.76634553,161.22,161.21,0.6218712]
[1721177555792,68.37674553,161.22,161.21,0.6218712]
[1721177556169,55.96704553,161.22,161.21,0.6218712]
[1721177556365,26.43704553,161.22,161.21,0.6218712]
[1721177557105,32.63974553,161.22,161.21,0.6218712]
[1721177559196,62.16974553,161.22,161.21,0.6218712]
[1721177559376,62.33974553,161.22,161.21,0.6218712]
[1721177561400,62.50974553,161.22,161.21,0.6218712]
[1721177562785,62.33974553,161.22,161.21,0.6218712]
[1721177562987,62.16974553,161.22,161.21,0.6218712]
[1721177563408,6.43704553,161.22,161.21,6.8248712]
[1721177563590,6.1992,161.31,161.23,15.5049]
[1721177563789,35.7289,161.32,161.27,6.2007]
[1721177564577,6.1992,161.31,161.26,21.7039]
[1721177564779,20.0,161.3,161.26,21.7039]
[1721177565903,6.2,161.29,161.24,6.2018]
[1721177566091,20.0,161.28,161.24,6.2018]
[1721177566489,20.0,161.28,161.25,15.5034]
[1721177566802,6.1996,161.3,161.25,21.7048]
[1721177566994,20.0,161.29,161.25,21.7048]
[1721177567394,26.2,161.29,161.25,15.5034]
[1721177567576,20.0,161.29,161.23,6.2022]
[1721177567899,20.0,161.31,161.22,21.7089]
[1721177568209,0.17,161.3,161.23,6.2022]
[1721177568586,6.2006,161.28,161.23,6.2022]
[1721177569188,6.2,161.29,161.24,6.2018]
[1721177569402,20.0,161.28,161.24,6.2018]
[1721177569813,20.0,161.28,161.26,6.201]
[1721177570110,20.0,161.3,161.26,6.201]
[1721177570314,26.1996,161.3,161.25,6.2014]
[1721177570507,26.1996,161.3,161.26,6.2011]
[1721177571318,26.1996,161.3,161.24,21.7054]
[1721177571498,20.0,161.3,161.24,15.5039]
[1721177571697,6.1987,161.33,161.28,21.7005]
[1721177572092,6.1987,161.33,161.29,6.2]
[1721177572296,6.1982,161.34,161.29,6.2]
[1721177572712,6.1985,161.33,161.28,21.7005]
[1721177573197,6.1982,161.34,161.29,6.1998]
[1721177573396,35.9723761,161.36,161.28,15.5003]
[1721177573605,6.1977,161.35,161.3,6.1996]
[1721177573895,6.1981,161.34,161.29,6.1998]
[1721177574498,20.0,161.33,161.29,6.1998]
[1721177574887,20.0,161.33,161.3,6.1995]
[1721177575109,20.0,161.34,161.3,6.1995]
[1721177575501,20.0,161.34,161.32,6.1987]
[1721177575702,6.1968,161.38,161.32,6.1987]
[1721177576215,6.1969,161.37,161.33,6.1984]
[1721177576393,29.53,161.39,161.32,6.1988]
[1721177576789,6.1969,161.37,161.32,6.1988]
[1721177577091,29.53,161.39,161.32,6.1987]
[1721177577292,20.0,161.38,161.32,6.1987]
[1721177577814,20.0,161.38,161.31,6.1991]
[1721177578008,6.1973,161.36,161.31,6.1991]
[1721177578215,20.0,161.35,161.32,6.1988]
[1721177578512,6.1972,161.37,161.32,6.1988]
[1721177578713,20.0,161.36,161.32,6.1988]
[1721177579703,26.1974,161.36,161.31,6.1992]
[1721177579891,20.0,161.36,161.3,15.4985]
[1721177580089,6.1972,161.37,161.31,6.1992]
[1721177580294,20.0,161.36,161.3,16.73830036]
[1721177580489,20.0,161.36,161.32,6.1987]
[1721177581213,20.0,161.36,161.32,15.4968]
[1721177581428,6.197,161.37,161.33,6.1984]
[1721177581620,6.1966,161.38,161.33,6.1984]
[1721177581851,6.1962,161.39,161.34,6.1979]
[1721177582197,6.1965,161.38,161.34,6.1979]
[1721177582526,6.1961,161.4,161.34,6.1979]
[1721177582825,6.1961,161.39,161.34,6.1979]
[1721177583030,6.1966,161.38,161.34,6.1979]
[1721177583201,6.1966,161.38,161.33,6.1983]
[1721177583592,6.1961,161.39,161.34,6.1979]
[1721177583792,20.0,161.38,161.34,6.1979]
[1721177585328,20.0,161.38,161.35,6.1976]
[1721177585713,20.0,161.39,161.35,6.1976]
[1721177587422,26.1962,161.39,161.35,6.1976]
[1721177588522,20.0,161.39,161.35,6.1976]
[1721177588716,20.0,161.39,161.36,6.1972]
[1721177589113,20.0,161.39,161.35,6.1975]
[1721177590219,26.1962,161.39,161.34,21.6927]
[1721177590429,26.1962,161.39,161.35,6.1976]
[1721177590927,26.1962,161.39,161.34,21.6928]
[1721177591104,6.1965,161.38,161.34,21.6928]
[1721177591725,26.1962,161.39,161.34,21.6928]
[1721177592826,26.1962,161.39,161.35,6.1975]
[1721177593022,26.1962,161.39,161.34,15.4948]
[1721177593535,20.0,161.39,161.34,15.4948]
[1721177593732,20.0,161.39,161.36,6.197]
[1721177595522,20.0,161.39,161.35,6.1976]
[1721177596530,20.0,161.39,161.34,15.4948]
[1721177596531,26.1963,161.39,161.34,21.6927]
[1721177596724,6.1966,161.38,161.34,15.4948]
[1721177597029,20.0,161.39,161.31,15.4974]
[1721177597327,6.1969,161.37,161.33,6.1984]
[1721177597731,20.0,161.39,161.36,6.1971]
[1721177597927,20.0,161.39,161.29,1.23961101]
[1721177598235,6.1965,161.38,161.33,6.1983]
[1721177598435,20.0,161.37,161.34,6.198]
[1721177598637,20.0,161.37,161.34,15.4945]
[1721177598935,20.0,161.37,161.35,6.1974]
[1721177599329,20.0,161.39,161.36,6.1972]
[1721177599838,20.0,161.4,161.36,6.1972]
[1721177600613,20.0,161.4,161.34,21.6924]
[1721177600814,6.1964,161.39,161.34,21.6924]
[1721177601009,26.1965,161.38,161.34,21.6924]
[1721177601230,6.1965,161.38,161.34,21.6924]
[1721177602319,14.77,161.35,161.31,15.4978]
[1721177602847,14.77,161.35,161.33,6.1983]
[1721177603142,14.77,161.34,161.32,6.1987]
[1721177604540,14.77,161.33,161.31,21.6969]
[1721177604742,14.77,161.33,161.31,15.4978]
[1721177605147,14.77,161.33,161.31,21.6969]
[1721177606238,14.77,161.34,161.32,6.1988]
[1721177606543,14.77,161.34,161.33,6.1984]
[1721177606855,14.77,161.34,161.31,15.4978]
[1721177607347,6.1973,161.36,161.32,6.1988]
[1721177607525,6.197,161.37,161.32,6.1988]
[1721177607725,14.77,161.34,161.32,6.1988]
[1721177607945,14.77,161.35,161.32,6.1988]
[1721177608849,14.77,161.34,161.31,21.6969]
[1721177609032,14.77,161.33,161.31,21.6969]
[1721177610044,6.1977,161.35,161.31,21.6969]
[1721177610254,14.77,161.33,161.31,21.6969]
[1721177612550,14.77,161.33,161.32,6.1988]
[1721177612738,14.77,161.34,161.33,6.1984]
[1721177614150,22.8071,161.38,161.34,6.198]
[1721177614452,34.77,161.37,161.35,6.1977]
[1721177614748,34.77,161.37,161.33,15.4958]
[1721177614950,34.77,161.37,161.33,16.73536566]
[1721177615150,34.77,161.37,161.34,6.1978]
[1721177615331,20.0,161.37,161.36,6.1973]
[1721177615754,34.77,161.37,161.36,6.1973]
[1721177616635,12.6504,161.41,161.37,6.1968]
[1721177616835,14.77,161.39,161.37,6.1968]
[1721177617035,14.77,161.38,161.35,15.4937]
[1721177617831,14.77,161.38,161.35,21.6912]
[1721177618352,14.77,161.37,161.35,21.6912]
[1721177619040,14.77,161.38,161.35,15.4937]
[1721177619530,14.77,161.38,161.35,21.6913]
[1721177619930,14.77,161.37,161.35,21.6913]
[1721177620533,14.77,161.38,161.35,21.6913]
[1721177621137,14.77,161.37,161.35,15.4937]
[1721177621331,14.77,161.36,161.31,15.4973]
[1721177621532,14.77,161.34,161.31,15.4973]
[1721177621753,14.77,161.34,161.31,21.6962]
[1721177622055,14.77,161.34,161.32,6.1988]
[1721177622253,14.77,161.33,161.31,21.6963]
[1721177622644,14.77,161.33,161.32,6.1988]
[1721177622945,14.77,161.33,161.31,21.6964]
[1721177623649,14.77,161.33,161.32,6.1988]
[1721177623954,14.77,161.34,161.33,6.1983]
[1721177624247,14.77,161.35,161.33,6.1983]
[1721177627560,14.77,161.35,161.32,6.1987]
[1721177630442,6.1966,161.38,161.33,7.43797707]
[1721177630755,14.77,161.36,161.33,1.23957707]
[1721177630938,14.77,161.36,161.32,6.1987]
[1721177631655,14.77,161.36,161.31,21.6964]
[1721177631656,14.77,161.35,161.31,21.6964]
[1721177631856,14.77,161.34,161.31,21.6964]
[1721177632358,14.77,161.34,161.32,6.1987]
[1721177632552,6.1973,161.36,161.31,21.6964]
[1721177632859,14.77,161.33,161.31,15.4973]
[1721177633438,14.77,161.33,161.31,21.6964]
[1721177633945,14.77,161.33,161.28,30.6854]
[1721177634150,14.77,161.32,161.29,6.1998]
[1721177634643,14.77,161.32,161.3,6.1994]
[1721177634835,14.77,161.33,161.3,6.1994]
[1721177635438,14.77,161.32,161.3,6.1994]
[1721177635656,14.77,161.36,161.28,15.5006]
[1721177635657,14.77,161.31,161.28,15.5006]
[1721177635962,14.77,161.3,161.29,6.1998]
[1721177636133,14.77,161.31,161.3,6.1996]
[1721177636338,14.77,161.31,161.28,15.5006]
[1721177636556,15.1229,161.36,161.32,15.4965]
[1721177636753,15.1229,161.36,161.28,14.77]
[1721177636754,14.77,161.33,161.28,14.77]
[1721177637141,14.77,161.33,161.27,14.77]
[1721177637547,14.77,161.33,161.28,1.23984259]
[1721177637769,14.77,161.32,161.29,21.6997]
[1721177638143,14.77,161.32,161.3,6.1995]
[1721177638343,14.77,161.32,161.29,15.4998]
[1721177638544,14.77,161.31,161.29,15.4998]
[1721177640373,14.77,161.33,161.3,6.1993]
[1721177640544,14.77,161.32,161.3,6.1993]
[1721177640869,6.1984,161.34,161.29,21.6997]
[1721177641052,14.77,161.31,161.29,21.6997]
[1721177641581,14.77,161.31,161.29,15.4998]
[1721177642251,14.77,161.32,161.29,15.4998]
[1721177642846,14.77,161.33,161.29,15.4998]
[1721177643043,6.455,161.41,161.33,15.4959]
[1721177643248,14.77,161.36,161.33,15.4959]
[1721177643457,14.77,161.36,161.34,6.198]
[1721177643673,14.77,161.36,161.33,22.93380939]
[1721177644376,14.77,161.36,161.34,6.198]
[1721177644667,14.77,161.35,161.33,15.4959]
[1721177646573,14.77,161.34,161.32,6.1984]
[1721177648374,14.77,161.34,161.31,6.1991]
[1721177648961,14.77,161.33,161.31,6.1991]
[1721177649374,14.77,161.33,161.32,6.1988]
[1721177650496,14.77,161.34,161.33,6.1984]
[1721177651682,21.9439,161.41,161.32,21.6952]
[1721177651862,14.77,161.33,161.32,15.4965]
[1721177652375,14.77,161.33,161.32,21.6953]
[1721177653294,14.77,161.33,161.32,15.4965]
[1721177653679,14.77,161.33,161.32,21.6953]
[1721177654509,14.77,161.33,161.32,15.4965]
[1721177656381,14.77,161.33,161.3,6.1995]
[1721177656699,14.77,161.31,161.3,6.1995]
[1721177658398,6.1978,161.35,161.3,6.1995]
[1721177658697,6.1978,161.35,161.29,15.4998]
[1721177658698,20.0,161.34,161.31,15.4977]
[1721177658902,20.0,161.34,161.31,21.6968]
[1721177659667,20.0,161.34,161.31,15.4977]
[1721177659871,14.77,161.32,161.28,15.5004]
[1721177660178,14.77,161.31,161.29,6.1997]
[1721177661287,14.77,161.31,161.3,6.1996]
[1721177663082,14.77,161.31,161.28,15.5004]
[1721177663083,14.77,161.31,161.29,6.1998]
[1721177664211,14.77,161.31,161.3,6.1996]
[1721177665309,14.77,161.31,161.29,6.1999]
[1721177665810,14.77,161.3,161.29,6.1999]
[1721177666407,14.77,161.3,161.28,21.7007]
[1721177666600,14.77,161.29,161.28,21.7007]
[1721177667186,14.77,161.3,161.28,21.7007]
[1721177667508,14.77,161.29,161.28,21.7007]
[1721177668002,14.77,161.3,161.29,6.2]
[1721177669815,32.823,161.35,161.3,6.1993]
[1721177669996,14.77,161.31,161.3,6.1993]
[1721177672905,26.6252,161.35,161.31,6.1991]
[1721177673208,14.77,161.32,161.3,21.6983]
[1721177673414,14.77,161.31,161.3,21.6983]
[1721177674122,14.77,161.31,161.3,15.4988]
[1721177674607,14.77,161.31,161.29,6.1999]
[1721177674799,6.1981,161.34,161.3,6.1996]
[1721177675107,14.77,161.31,161.3,6.1996]
[1721177675305,26.6252,161.35,161.31,6.1989]
[1721177675489,14.77,161.32,161.3,6.1995]
[1721177675689,14.77,161.31,161.3,6.1995]
[1721177676697,14.77,161.31,161.29,21.6994]
[1721177677088,14.77,161.3,161.29,21.6996]
[1721177679822,26.6252,161.35,161.32,6.1988]
[1721177680133,14.77,161.33,161.31,15.4975]
[1721177680293,14.77,161.32,161.31,21.6967]
[1721177681323,20.0,161.35,161.31,15.4975]
[1721177681503,14.77,161.33,161.31,15.4975]
[1721177682023,14.77,161.34,161.33,6.1984]
[1721177682328,14.77,161.34,161.32,6.1987]
[1721177682495,14.77,161.33,161.32,6.1987]
[1721177685118,14.77,161.33,161.31,21.6966]
[1721177685317,14.77,161.32,161.31,15.4975]
[1721177685732,14.77,161.32,161.31,21.6967]
[1721177686229,14.77,161.33,161.31,21.6967]
[1721177686527,14.77,161.32,161.31,21.6967]
[1721177686999,14.77,161.32,161.31,15.4975]
[1721177688830,14.77,161.32,161.31,21.6967]
[1721177691443,12.5528,161.39,161.33,15.4956]
[1721177691739,14.77,161.34,161.33,21.694]
[1721177693946,14.77,161.35,161.34,6.198]
[1721177694851,14.77,161.35,161.33,21.6939]
[1721177695053,14.77,161.34,161.33,21.6939]
[1721177695823,14.77,161.35,161.33,21.6939]
[1721177696349,14.77,161.35,161.34,6.198]
[1721177696859,14.77,161.35,161.33,21.694]
[1721177697222,12.5529,161.39,161.33,15.4956]
[1721177697424,14.77,161.36,161.34,1.23944926]
[1721177697624,14.77,161.36,161.34,7.43744926]
[1721177697846,14.77,161.35,161.34,7.43744926]
[1721177698051,14.77,161.35,161.34,6.198]
[1721177698338,14.77,161.35,161.31,6.1992]
[1721177698535,14.77,161.32,161.31,6.1992]
[1721177698729,14.77,161.32,161.3,7.43900896]
[1721177698927,6.1981,161.34,161.29,21.6989]
[1721177699143,14.77,161.31,161.29,21.6989]
[1721177699762,14.77,161.31,161.3,6.1996]
[1721177700227,14.77,161.31,161.29,21.699]
[1721177701638,14.77,161.31,161.3,6.1996]
[1721177701824,14.77,161.36,161.31,6.199]
[1721177702032,14.77,161.32,161.31,6.199]
[1721177702239,14.77,161.33,161.32,6.1988]
[1721177704852,6.197,161.37,161.33,6.1984]
[1721177705040,14.77,161.34,161.33,6.1984]
[1721177705241,6.1966,161.38,161.34,6.198]
[1721177705242,14.77,161.35,161.34,6.198]
[1721177705960,14.77,161.35,161.33,21.6942]
[1721177706163,14.77,161.34,161.33,21.6942]
[1721177706528,14.77,161.34,161.33,15.4958]
[1721177706849,14.77,161.34,161.32,6.1987]
[1721177707041,14.77,161.33,161.32,6.1987]
[1721177707239,14.77,161.33,161.31,6.1992]
[1721177707429,20.9673,161.36,161.31,6.1992]
[1721177707630,14.77,161.32,161.31,6.1992]
[1721177708831,14.77,161.33,161.31,6.1992]
[1721177710435,14.77,161.33,161.32,6.1988]
[1721177712558,6.3567,161.39,161.32,6.1988]
[1721177712559,14.77,161.35,161.33,6.1983]
[1721177712856,6.3567,161.39,161.35,6.1973]
[1721177713054,14.77,161.36,161.34,21.6923]
[1721177713229,14.77,161.36,161.35,6.1977]
[1721177713727,12.5529,161.39,161.35,6.1977]
[1721177713728,14.77,161.37,161.35,6.1977]
[1721177714062,14.77,161.36,161.35,6.1977]
[1721177714445,14.77,161.36,161.34,21.6924]
[1721177714838,14.77,161.35,161.34,15.4944]
[1721177715062,14.77,161.35,161.32,6.1988]
[1721177715232,14.77,161.34,161.33,6.1984]
[1721177715434,6.3567,161.39,161.33,15.4955]
[1721177715661,14.77,161.36,161.35,6.1973]
[1721177715842,14.77,161.36,161.33,21.6936]
[1721177716046,14.77,161.36,161.34,6.198]
[1721177716352,14.77,161.36,161.35,6.1977]
[1721177717060,14.77,161.36,161.34,6.1979]
[1721177717960,14.77,161.35,161.34,6.1979]
[1721177718160,14.77,161.35,161.33,21.6937]
[1721177720254,14.77,161.34,161.33,21.6937]
[1721177721850,14.77,161.34,161.3,15.4985]
[1721177722028,14.77,161.32,161.31,6.1989]
[1721177722470,14.77,161.32,161.3,21.698]
[1721177722633,14.77,161.31,161.29,6.1999]
[1721177722839,14.77,161.3,161.29,6.1999]
[1721177724137,14.77,161.3,161.28,6.2003]
[1721177724733,14.77,161.29,161.27,21.7019]
[1721177724946,14.77,161.28,161.27,21.7019]
[1721177725149,14.77,161.28,161.24,31.0084]
[1721177725150,14.77,161.28,161.25,6.2014]
[1721177725457,14.77,161.26,161.25,6.2014]
[1721177725842,14.77,161.27,161.26,6.201]
[1721177726754,14.77,161.27,161.25,6.2014]
[1721177726947,14.77,161.26,161.25,6.2014]
[1721177731860,14.77,161.27,161.26,6.2011]
[1721177732954,14.77,161.27,161.24,15.5046]
[1721177733268,14.77,161.26,161.25,6.2011]
[1721177737082,14.77,161.26,161.24,21.7064]
[1721177737376,14.77,161.26,161.25,6.2015]
[1721177739174,14.77,161.26,161.24,21.7064]
[1721177739355,6.2002,161.29,161.24,21.7064]
[1721177739356,14.77,161.25,161.24,21.7064]
[1721177741275,14.77,161.26,161.24,21.7064]
[1721177741488,6.2002,161.29,161.25,6.2015]
[1721177741653,14.77,161.26,161.25,6.2015]
[1721177742179,14.77,161.26,161.24,21.7064]
[1721177742390,14.77,161.25,161.24,21.7064]
[1721177748482,6.3007,161.33,161.28,15.5006]
[1721177748685,6.3007,161.33,161.29,6.1999]
[1721177748853,14.77,161.3,161.29,6.1999]
[1721177749054,14.77,161.3,161.28,21.7008]
[1721177749386,14.77,161.29,161.28,15.5006]
[1721177750277,14.77,161.29,161.25,15.5032]
[1721177750467,14.77,161.27,161.26,6.2011]
[1721177752582,14.77,161.28,161.27,21.7023]
[1721177752781,14.77,161.29,161.28,6.2001]
[1721177756278,6.199,161.32,161.28,6.2001]
[1721177756584,14.77,161.29,161.28,6.2001]
[1721177757392,12.4993,161.33,161.29,6.1999]
[1721177757574,14.77,161.3,161.28,6.2001]
[1721177757776,14.77,161.29,161.28,6.2001]
[1721177759508,6.3007,161.33,161.29,15.4991]
[1721177759658,6.3007,161.33,161.31,6.1988]
[1721177759865,14.77,161.32,161.31,6.1988]
[1721177760093,14.77,161.32,161.3,6.1994]
[1721177760285,6.1974,161.36,161.31,6.1992]
[1721177760469,12.7006,161.38,161.34,6.198]
[1721177760676,14.77,161.35,161.32,21.6956]
[1721177760871,22.3749,161.43,161.35,15.4939]
[1721177761390,14.77,161.38,161.37,6.1967]
[1721177761691,14.77,161.38,161.36,6.1972]
[1721177761891,14.77,161.37,161.36,6.1972]
[1721177762208,14.77,161.37,161.35,21.6914]
[1721177762503,14.77,161.36,161.35,21.6914]
[1721177762874,14.77,161.38,161.35,15.4939]
[1721177763069,14.77,161.37,161.36,6.1973]
[1721177766681,14.77,161.38,161.37,6.1966]
[1721177768205,22.3749,161.43,161.37,15.4918]
[1721177768410,14.77,161.41,161.4,6.1957]
[1721177768711,6.5038,161.43,161.37,16.00918593]
[1721177768880,14.77,161.43,161.42,6.195]
[1721177769379,14.77,161.44,161.43,6.1945]
[1721177769792,14.77,161.45,161.43,6.1945]
[1721177770804,14.77,161.45,161.42,6.1949]
[1721177770978,14.77,161.44,161.42,6.1949]
[1721177771184,14.77,161.44,161.41,15.488]
[1721177771483,22.5796,161.47,161.44,6.1941]
[1721177771689,14.77,161.45,161.44,6.1941]
[1721177772385,14.77,161.45,161.43,21.6808]
[1721177772689,6.1924,161.49,161.44,6.1942]
[1721177772999,14.77,161.46,161.44,7.43291481]
[1721177773392,35.24690313,161.51,161.45,15.4842]
[1721177773702,14.77,161.48,161.45,15.4842]
[1721177773879,14.77,161.48,161.46,6.1932]
[1721177775219,14.77,161.49,161.46,6.1932]
[1721177775387,6.1916,161.51,161.46,7.43181755]
[1721177775586,14.77,161.49,161.46,7.43181755]
[1721177776598,15.4765,161.54,161.45,15.4842]
[1721177776909,14.77,161.46,161.42,21.6819]
[1721177777093,14.77,161.43,161.42,21.6819]
[1721177777293,14.77,161.43,161.41,6.1953]
[1721177777610,14.77,161.44,161.43,6.1943]
[1721177780118,14.77,161.44,161.42,6.1949]
[1721177780303,14.77,161.44,161.43,6.1946]
[1721177780488,14.77,161.44,161.42,6.1949]
[1721177780810,14.77,161.43,161.42,6.1949]
[1721177791234,14.77,161.43,161.4,6.1954]
[1721177791513,14.77,161.41,161.38,15.4909]
[1721177791718,20.0,161.43,161.39,6.1961]
[1721177791925,14.77,161.4,161.39,6.1961]
[1721177792617,14.77,161.4,161.38,21.6873]
[1721177792997,14.77,161.4,161.39,6.1961]
[1721177793521,14.77,161.4,161.38,15.4909]
[1721177793737,14.77,161.39,161.38,21.6871]
[1721177798407,14.77,161.39,161.38,15.4909]
[1721177798732,14.77,161.39,161.34,15.4947]
[1721177798914,14.77,161.36,161.35,6.1977]
[1721177799512,14.77,161.36,161.34,21.6926]
[1721177799701,14.77,161.35,161.34,21.6926]
[1721177808223,14.77,161.35,161.32,6.1986]
[1721177808424,14.77,161.33,161.31,21.6967]
[1721177808630,14.77,161.32,161.31,21.6967]
[1721177809206,14.77,161.32,161.31,15.4975]
[1721177810738,14.77,161.32,161.31,21.6967]
[1721177813741,14.77,161.32,161.3,6.1996]
[1721177813916,14.77,161.31,161.3,6.1996]
[1721177821337,14.77,161.31,161.28,15.5002]